bitfinex-derivatives/quotes_BTCF0:USTF0_20241006
["timestamp","ask_amount","ask_price","bid_price","bid_amount"]
[1728182606620,0.0004,62001.0,61999.0,0.21513528]
[1728182606819,0.0004,62001.0,62000.0,0.18126205]
[1728182607620,0.12054598,62001.0,62000.0,0.064912]
[1728182608213,0.12054613,62001.0,62000.0,0.064912]
[1728182608517,0.12154613,62001.0,62000.0,0.064912]
[1728182608718,0.12254613,62001.0,62000.0,0.064912]
[1728182609716,0.29929868,62001.0,62000.0,0.064912]
[1728182610825,0.29929868,62001.0,62000.0,0.071912]
[1728182611422,0.12254613,62001.0,62000.0,0.071912]
[1728182613324,0.12254848,62001.0,62000.0,0.071912]
[1728182614720,0.0024,62001.0,62000.0,0.18753746]
[1728182621630,0.03355267,62001.0,62000.0,0.071912]
[1728182622023,0.07304609,62001.0,62000.0,0.071912]
[1728182622223,0.12254841,62001.0,62000.0,0.071912]
[1728182623537,0.11254841,62001.0,62000.0,0.071912]
[1728182629635,0.0644,62002.0,62000.0,0.18762288]
[1728182629842,0.0644,62002.0,62001.0,0.19678599]
[1728182630042,0.0644,62002.0,62001.0,0.11611088]
[1728182630646,0.0644,62002.0,62001.0,0.19678508]
[1728182630942,0.0654,62002.0,62001.0,0.19678508]
[1728182631243,0.0654,62002.0,62001.0,0.11611088]
[1728182631444,0.0654,62002.0,62001.0,0.19678579]
[1728182631643,0.0654,62002.0,62001.0,0.11611088]
[1728182632144,0.0664,62002.0,62001.0,0.19678583]
[1728182632746,0.0654,62002.0,62001.0,0.19678583]
[1728182633046,0.0664,62002.0,62001.0,0.20378688]
[1728182633545,0.0664,62002.0,62001.0,0.12311193]
[1728182634853,0.0664,62002.0,62001.0,0.20378622]
[1728182635245,0.0664,62002.0,62001.0,0.12311193]
[1728182635446,0.1764,62002.0,62001.0,0.12311193]
[1728182635660,0.24091,62002.0,62001.0,0.20378997]
[1728182635877,0.24091,62002.0,62001.0,0.20378841]
[1728182636657,0.24091,62002.0,62001.0,0.08807648]
[1728182641762,0.24091,62002.0,62001.0,0.0074]
[1728182641956,0.24091,62002.0,62001.0,0.08807648]
[1728182642152,0.24091,62002.0,62001.0,0.0074]
[1728182642665,0.13091,62002.0,62001.0,0.0074]
[1728182642867,0.13091,62002.0,62001.0,0.08807648]
[1728182643366,0.13091,62002.0,62001.0,0.20377372]
[1728182643965,0.13091,62002.0,62001.0,0.20378743]
[1728182644659,0.25106045,62002.0,62001.0,0.0074]
[1728182645355,0.21836045,62002.0,62001.0,0.0074]
[1728182646158,0.18666045,62002.0,62001.0,0.0074]
[1728182648963,0.12215045,62002.0,62001.0,0.0074]
[1728182651664,0.002,62002.0,62001.0,0.20376502]
[1728182652668,0.06651,62002.0,62001.0,0.20376502]
[1728182652976,0.06651,62002.0,62001.0,0.0074]
[1728182653167,0.06651,62002.0,62001.0,0.08807648]
[1728182653567,0.06651,62002.0,62001.0,0.20377778]
[1728182654264,0.06651,62002.0,62001.0,0.20377722]
[1728182654459,0.002,62002.0,62001.0,0.1231013]
[1728182658366,0.002,62002.0,62001.0,0.20377828]
[1728182658567,0.002,62002.0,62001.0,0.1231013]
[1728182658777,0.002,62002.0,62001.0,0.20377887]
[1728182659273,0.002,62002.0,62001.0,0.1231013]
[1728182659778,0.002,62002.0,62001.0,0.0074]
[1728182664478,0.06651,62002.0,62001.0,0.0074]
[1728182666881,0.09766357,62002.0,62001.0,0.0074]
[1728182667574,0.18666188,62002.0,62001.0,0.0074]
[1728182670376,0.24450662,62002.0,62001.0,0.0074]
[1728182670679,0.18666188,62002.0,62001.0,0.0074]
[1728182670886,0.24450662,62002.0,62001.0,0.0074]
[1728182671683,0.18666188,62002.0,62001.0,0.0074]
[1728182671903,0.24450662,62002.0,62001.0,0.0074]
[1728182673579,0.18666188,62002.0,62001.0,0.0074]
[1728182673780,0.24450662,62002.0,62001.0,0.0074]
[1728182674890,0.06651,62002.0,62001.0,0.08807704]
[1728182678483,0.06651,62002.0,62001.0,0.0074]
[1728182681891,0.13715897,62002.0,62001.0,0.0074]
[1728182682791,0.18666358,62002.0,62001.0,0.0074]
[1728182683488,0.54746358,62002.0,62001.0,0.0074]
[1728182684793,0.18666358,62002.0,62001.0,0.0074]
[1728182684983,0.65746358,62002.0,62001.0,0.0074]
[1728182685490,0.65746622,62002.0,62001.0,0.0074]
[1728182686290,0.29666622,62002.0,62001.0,0.0074]
[1728182686493,0.65746622,62002.0,62001.0,0.0074]
[1728182688288,0.71531319,62002.0,62001.0,0.0074]
[1728182689908,0.53731,62002.0,62001.0,0.0074]
[1728182693995,0.17651,62002.0,62001.0,0.0074]
[1728182694201,0.53731,62002.0,62001.0,0.0074]
[1728182694489,0.17651,62002.0,62001.0,0.0074]
[1728182694694,0.53731,62002.0,62001.0,0.0074]
[1728182696897,0.65746506,62002.0,62001.0,0.0074]
[1728182697296,0.29666506,62002.0,62001.0,0.0074]
[1728182697593,0.65746506,62002.0,62001.0,0.0074]
[1728182697796,0.29666506,62002.0,62001.0,0.0074]
[1728182697994,0.65746506,62002.0,62001.0,0.0074]
[1728182699003,0.29666506,62002.0,62001.0,0.0074]
[1728182699191,0.65746506,62002.0,62001.0,0.0074]
[1728182700797,0.81817357,62002.0,62001.0,0.0074]
[1728182701298,0.65746506,62002.0,62001.0,0.0074]
[1728182701504,0.54746506,62002.0,62001.0,0.0074]
[1728182701907,0.18666506,62002.0,62001.0,0.0074]
[1728182702097,0.54746506,62002.0,62001.0,0.0074]
[1728182702302,0.6053113,62002.0,62001.0,0.0074]
[1728182705007,0.42731,62002.0,62001.0,0.0074]
[1728182711707,0.42731,62002.0,62001.0,0.08807704]
[1728182711906,0.42731,62002.0,61997.0,0.09678523]
[1728182711907,0.54080122,62002.0,61996.0,0.0113]
[1728182712106,0.0004,61997.0,61996.0,0.0113]
[1728182712305,0.0004,61997.0,61995.0,0.174517]
[1728182712306,0.04990503,61997.0,61995.0,0.174517]
[1728182712511,0.12015498,61996.0,61995.0,0.174517]
[1728182712711,0.12055498,61996.0,61995.0,0.174517]
[1728182713410,0.12055422,61996.0,61995.0,0.174517]
[1728182715408,0.12155422,61996.0,61995.0,0.174517]
[1728182715807,0.12255422,61996.0,61995.0,0.174517]
[1728182717412,0.12255422,61996.0,61995.0,0.064517]
[1728182719115,0.12255422,61996.0,61995.0,0.174517]
[1728182720014,0.16061057,61998.0,61995.0,0.58890953]
[1728182720216,0.16061057,61998.0,61997.0,0.0004]
[1728182720512,0.16061057,61998.0,61997.0,0.25442287]
[1728182721418,0.16161057,61998.0,61997.0,0.25442287]
[1728182722115,0.16261057,61998.0,61997.0,0.25442287]
[1728182722321,0.16261057,61998.0,61997.0,0.25542287]
[1728182723013,0.16261057,61998.0,61997.0,0.1172889]
[1728182723213,0.16261057,61998.0,61997.0,0.25429366]
[1728182723412,0.22712457,61998.0,61997.0,0.25429366]
[1728182724416,0.22712457,61998.0,61997.0,0.41385447]
[1728182724721,0.22712457,61998.0,61997.0,0.25429366]
[1728182727023,0.22712457,61998.0,61997.0,0.11677321]
[1728182728013,0.22712457,61998.0,61997.0,0.21356793]
[1728182728214,0.066514,61998.0,61997.0,0.21356793]
[1728182728421,0.066514,61998.0,61997.0,0.2135648]
[1728182728815,0.066514,61998.0,61997.0,0.11674434]
[1728182729423,0.002,61998.0,61997.0,0.11674434]
[1728182729619,0.002,61998.0,61997.0,0.27808053]
[1728182730915,0.002,61998.0,61997.0,0.18126034]
[1728182731522,0.0042,62003.0,62002.0,0.06451]
[1728182731824,0.0004,62003.0,62002.0,0.42729485]
[1728182732525,0.0004,62003.0,62002.0,0.29025434]
[1728182732721,0.0004,62003.0,62002.0,0.28982296]
[1728182732922,0.0024,62003.0,62002.0,0.29182296]
[1728182733328,0.0024,62003.0,62002.0,0.38852907]
[1728182733626,0.0024,62003.0,62002.0,0.29182296]
[1728182734418,0.0024,62003.0,62002.0,0.3885048]
[1728182735026,0.04188832,62003.0,62002.0,1.2896338]
[1728182735521,0.07303697,62003.0,62002.0,1.2896338]
[1728182738038,0.03354865,62003.0,62002.0,1.2896338]
[1728182739625,0.03354865,62003.0,62002.0,0.6896338]
[1728182739823,0.03354812,62003.0,62002.0,0.6896338]
[1728182741028,0.03354812,62003.0,62002.0,1.0504338]
[1728182741933,0.03354812,62003.0,62002.0,0.6896338]
[1728182742128,0.03354812,62003.0,62002.0,1.16416968]
[1728182742129,0.0024,62003.0,62002.0,1.16416968]
[1728182743042,0.0024,62003.0,62002.0,0.68032968]
[1728182752138,0.0024,62003.0,62002.0,0.68031556]
[1728182752633,0.0004,62006.0,62005.0,0.064507]
[1728182752836,0.0004,62006.0,62005.0,0.28862876]
[1728182754133,0.0014,62006.0,62005.0,0.29062876]
[1728182755036,0.0024,62006.0,62005.0,0.29162876]
[1728182757037,0.03354805,62006.0,62005.0,0.177907]
[1728182759739,0.04188756,62006.0,62005.0,0.177907]
[1728182759938,0.07303561,62006.0,62005.0,0.177907]
[1728182760833,0.07303548,62006.0,62005.0,0.177907]
[1728182762931,0.07303548,62006.0,62005.0,1.261747]
[1728182763137,0.0004,62007.0,62005.0,1.261747]
[1728182763138,0.0004,62007.0,62006.0,0.064506]
[1728182763336,0.0004,62007.0,62006.0,0.548746]
[1728182763634,0.0004,62008.0,62007.0,0.064505]
[1728182763837,0.0004,62008.0,62007.0,0.548705]
[1728182764134,0.0004,62008.0,62007.0,1.148705]
[1728182764331,0.04989022,62008.0,62007.0,1.148705]
[1728182765245,0.144949,62009.0,62008.0,0.548304]
[1728182765246,0.144549,62009.0,62008.0,0.548304]
[1728182765538,0.144549,62009.0,62008.0,0.90913528]
[1728182766131,0.144549,62009.0,62008.0,1.26993528]
[1728182766739,0.144549,62009.0,62008.0,1.27293528]
[1728182766939,0.144549,62009.0,62008.0,0.91213528]
[1728182767138,0.144549,62009.0,62008.0,1.27293528]
[1728182767847,0.144549,62009.0,62008.0,1.27693528]
[1728182768243,0.144549,62009.0,62008.0,0.91613528]
[1728182768446,0.144549,62009.0,62008.0,1.27693528]
[1728182768745,0.0704,62012.0,62008.0,1.21243128]
[1728182768946,0.0704,62012.0,62011.0,0.174901]
[1728182769135,0.0704,62012.0,62011.0,0.28915125]
[1728182770240,0.0704,62012.0,62011.0,0.38588174]
[1728182770444,0.0704,62012.0,62011.0,0.28915125]
[1728182771150,0.0704,62012.0,62011.0,0.64995125]
[1728182771647,0.0704,62012.0,62011.0,0.65095125]
[1728182772141,0.22387566,62012.0,62011.0,0.426701]
[1728182772467,0.22387566,62012.0,62011.0,0.002]
[1728182772650,0.22387566,62012.0,62008.0,0.064904]
[1728182772651,0.064503,62009.0,62008.0,0.0004]
[1728182772839,0.55977566,62009.0,62002.0,0.0042]
[1728182773041,0.064512,62000.0,61999.0,0.0038]
[1728182773242,0.064512,62000.0,61994.0,0.064519]
[1728182773243,0.38213834,62000.0,61994.0,0.064519]
[1728182773446,0.0004,61998.0,61994.0,0.064519]
[1728182773649,0.03155033,61998.0,61994.0,0.064519]
[1728182773847,0.297002,61998.0,61994.0,0.064519]
[1728182774045,0.12052599,61998.0,61994.0,0.064519]
[1728182774351,0.16073505,61998.0,61994.0,0.064519]
[1728182774553,0.12052599,61998.0,61994.0,0.064519]
[1728182775641,0.12152599,61998.0,61997.0,0.0034]
[1728182776948,0.12252599,61998.0,61997.0,0.0034]
[1728182777347,0.2826934,61998.0,61997.0,0.0034]
[1728182778448,0.12252599,61998.0,61997.0,0.0034]
[1728182780156,0.0024,61998.0,61997.0,0.19960113]
[1728182780355,0.0024,61998.0,61997.0,0.0034]
[1728182780957,0.0028,61998.0,61997.0,0.0034]
[1728182781352,0.0028,61998.0,61997.0,0.08400225]
[1728182781552,0.0028,61998.0,61997.0,0.0034]
[1728182781944,0.0028,61998.0,61997.0,0.08400225]
[1728182782559,0.0028,61998.0,61997.0,0.0034]
[1728182786164,0.3636,61998.0,61997.0,0.0034]
[1728182786763,0.0028,61998.0,61997.0,0.0034]
[1728182786955,0.3636,61998.0,61997.0,0.0034]
[1728182787156,0.43425179,61998.0,61997.0,0.0034]
[1728182788965,0.07345179,61998.0,61997.0,0.0034]
[1728182789168,0.43425179,61998.0,61997.0,0.0034]
[1728182790956,0.07345179,61998.0,61997.0,0.0034]
[1728182791260,0.43425179,61998.0,61997.0,0.0034]
[1728182793363,0.07345179,61998.0,61997.0,0.0034]
[1728182795261,0.064514,61999.0,61997.0,0.11882939]
[1728182795463,0.064514,61999.0,61998.0,0.19621031]
[1728182796369,0.064514,61999.0,61998.0,0.11582939]
[1728182796961,0.065514,61999.0,61998.0,0.11582939]
[1728182797868,0.066514,61999.0,61998.0,0.11782939]
[1728182798964,0.066514,61999.0,61998.0,0.11753021]
[1728182799167,0.066514,61999.0,61998.0,0.12253021]
[1728182799467,0.066514,61999.0,61998.0,0.2192607]
[1728182800064,0.427314,61999.0,61998.0,0.2192607]
[1728182800463,0.427314,61999.0,61998.0,0.12253021]
[1728182801268,0.066514,61999.0,61998.0,0.12253021]
[1728182801467,0.427314,61999.0,61998.0,0.25996265]
[1728182801969,0.066514,61999.0,61998.0,0.25996265]
[1728182802165,0.427314,61999.0,61998.0,0.0074]
[1728182802371,0.427314,61999.0,61998.0,0.12279935]
[1728182802973,0.066514,61999.0,61998.0,0.12279935]
[1728182803275,0.427314,61999.0,61998.0,0.12279935]
[1728182803667,0.427314,61999.0,61998.0,0.12280681]
[1728182804566,0.066514,61999.0,61998.0,0.12280681]
[1728182809171,0.24451471,61999.0,61998.0,0.0074]
[1728182809366,0.42055281,61999.0,61998.0,0.0074]
[1728182810070,0.36270674,61999.0,61998.0,0.0074]
[1728182810372,0.42055281,61999.0,61998.0,0.0074]
[1728182811569,0.78135281,61999.0,61998.0,0.0074]
[1728182812168,0.65899274,61999.0,61998.0,0.071914]
[1728182812368,0.48295464,61999.0,61998.0,0.214814]
[1728182813370,0.41230489,61999.0,61998.0,0.214814]
[1728182813675,0.48295262,61999.0,61998.0,0.214814]
[1728182814879,0.26665605,61999.0,61998.0,0.214814]
[1728182815973,0.26666985,61999.0,61998.0,0.214814]
[1728182816171,0.12215262,61999.0,61998.0,0.214814]
[1728182816375,0.14651676,61999.0,61998.0,0.214814]
[1728182816681,0.12215262,61999.0,61998.0,0.214814]
[1728182816971,0.14651343,61999.0,61998.0,0.214814]
[1728182817173,0.002,61999.0,61998.0,0.46752452]
[1728182817376,0.0113,62002.0,61998.0,0.46752452]
[1728182817377,0.0113,62002.0,62000.0,0.064512]
[1728182817570,0.0004,62003.0,62001.0,0.11568966]
[1728182817879,0.0004,62003.0,62002.0,0.11568966]
[1728182818477,0.0004,62003.0,62002.0,0.11567475]
[1728182819068,0.0014,62003.0,62002.0,0.11567475]
[1728182819568,0.1114,62003.0,62002.0,0.11567475]
[1728182819762,0.175909,62003.0,62002.0,0.11767475]
[1728182820875,0.175909,62003.0,62002.0,0.12367475]
[1728182820876,0.176909,62003.0,62002.0,0.12367475]
[1728182822174,0.537709,62003.0,62002.0,0.12367475]
[1728182823972,0.176909,62003.0,62002.0,0.12367475]
[1728182824174,0.537709,62003.0,62002.0,0.12367475]
[1728182824373,0.65785973,62003.0,62002.0,0.0084]
[1728182825975,0.83389783,62003.0,62002.0,0.0084]
[1728182826690,0.65786066,62003.0,62002.0,0.0084]
[1728182828369,0.65786088,62003.0,62002.0,0.0084]
[1728182830475,0.71570619,62003.0,62002.0,0.0084]
[1728182831483,0.71570723,62003.0,62002.0,0.0084]
[1728182832379,0.537709,62003.0,62002.0,0.0084]
[1728182834372,0.176909,62003.0,62002.0,0.0084]
[1728182834572,0.537709,62003.0,62002.0,0.0084]
[1728182835081,0.537709,62003.0,62002.0,0.07293963]
[1728182836381,0.176909,62003.0,62002.0,0.07293963]
[1728182836587,0.537709,62003.0,62002.0,0.07293963]
[1728182839278,0.537709,62003.0,62002.0,0.0084]
[1728182839880,0.427709,62003.0,62002.0,0.0084]
[1728182843891,0.537709,62003.0,62002.0,0.0084]
[1728182844185,0.176909,62003.0,62002.0,0.0084]
[1728182844393,0.537709,62003.0,62002.0,0.0084]
[1728182844688,0.176909,62003.0,62002.0,0.0084]
[1728182844887,0.537709,62003.0,62002.0,0.0084]
[1728182846584,0.176909,62003.0,62002.0,0.0084]
[1728182846780,0.537709,62003.0,62002.0,0.0084]
[1728182847384,0.71571153,62003.0,62002.0,0.0084]
[1728182850895,0.06451,62002.0,62001.0,0.0004]
[1728182851091,0.24291611,62002.0,62001.0,0.0004]
[1728182852392,0.24291611,62002.0,62001.0,0.0054]
[1728182852393,0.18606945,62002.0,62001.0,0.0054]
[1728182852592,0.42165289,62002.0,62001.0,0.0084]
[1728182853097,0.24491607,62002.0,62001.0,0.0084]
[1728182854497,0.06691,62002.0,62001.0,0.21990484]
[1728182854891,0.06691,62002.0,62001.0,0.21991089]
[1728182855099,0.06691,62002.0,62001.0,0.12310026]
[1728182855499,0.06691,62002.0,62001.0,0.21991007]
[1728182855903,0.06691,62002.0,62001.0,0.21991043]
[1728182856697,0.06691,62002.0,62001.0,0.12310026]
[1728182856897,0.06691,62002.0,62001.0,0.21991004]
[1728182858602,0.17691,62002.0,62001.0,0.21991004]
[1728182860804,0.17691,62002.0,62001.0,0.21991738]
[1728182861595,0.06691,62002.0,62001.0,0.21991738]
[1728182862004,0.17691,62002.0,62001.0,0.21991738]
[1728182862406,0.45775428,62002.0,62001.0,0.0084]
[1728182863596,0.81855428,62002.0,62001.0,0.0084]
[1728182865392,0.76904829,62002.0,62001.0,0.0084]
[1728182865595,0.60836133,62002.0,62001.0,0.0084]
[1728182868609,0.24756133,62002.0,62001.0,0.0084]
[1728182868805,0.60836133,62002.0,62001.0,0.0084]
[1728182869510,0.17691,62002.0,62001.0,0.12283571]
[1728182870017,0.53771,62002.0,62001.0,0.12283571]
[1728182873207,0.17691,62002.0,62001.0,0.12283571]
[1728182873416,0.53771,62002.0,62001.0,0.12283571]
[1728182873799,0.17691,62002.0,62001.0,0.12283571]
[1728182874014,0.53771,62002.0,62001.0,0.12283571]
[1728182874213,0.17691,62002.0,62001.0,0.12283571]
[1728182874516,0.53771,62002.0,62001.0,0.12283571]
[1728182875505,0.53771,62002.0,62001.0,0.1228368]
[1728182875701,0.42771,62002.0,62001.0,0.1228368]
[1728182876414,0.3632,62002.0,62001.0,0.2973478]
[1728182876606,0.3632,62002.0,62001.0,0.43368971]
[1728182876917,0.36751957,62013.0,62007.0,0.064505]
[1728182877123,0.36751957,62013.0,62007.0,0.42550965]
[1728182877124,0.36321957,62013.0,62007.0,0.42550965]
[1728182877304,0.36321957,62013.0,62011.0,0.0004]
[1728182877509,0.36321957,62013.0,62007.0,0.07895384]
[1728182877510,0.2483868,62012.0,62007.0,0.07895384]
[1728182877816,0.0004,62008.0,62007.0,0.07799384]
[1728182878007,0.03155185,62008.0,62007.0,0.07799384]
[1728182878514,0.12054525,62008.0,62007.0,0.14349884]
[1728182879105,0.12054525,62008.0,62007.0,0.14249884]
[1728182879307,0.12154525,62008.0,62007.0,0.14349884]
[1728182879507,0.12154525,62008.0,62007.0,0.14449884]
[1728182880511,0.12154496,62008.0,62007.0,0.14449884]
[1728182881215,0.12154496,62008.0,62007.0,0.07999384]
[1728182881515,0.23154496,62008.0,62007.0,0.0024]
[1728182884527,0.659704,62008.0,62007.0,0.0024]
[1728182885910,0.175904,62008.0,62007.0,0.0024]
[1728182886614,0.536704,62008.0,62007.0,0.0024]
[1728182887311,0.175904,62008.0,62007.0,0.0024]
[1728182888312,0.426704,62008.0,62007.0,0.0024]
[1728182888619,0.536704,62008.0,62007.0,0.0024]
[1728182891924,0.175904,62008.0,62007.0,0.0024]
[1728182893722,0.065904,62008.0,62007.0,0.0024]
[1728182893921,0.175904,62008.0,62007.0,0.0024]
[1728182897524,0.175904,62008.0,62007.0,0.06694087]
[1728182897825,0.175904,62008.0,62007.0,0.0024]
[1728182898921,0.175904,62008.0,62007.0,0.06694087]
[1728182899513,0.35390016,62008.0,62003.0,0.08067609]
[1728182899735,0.0004,62004.0,62002.0,0.0329]
[1728182899918,0.12055157,62003.0,62002.0,0.0329]
[1728182900626,0.12055157,62003.0,62002.0,0.09741]
[1728182900830,0.12055157,62003.0,62002.0,0.15901]
[1728182902729,0.12055157,62003.0,62002.0,0.16001]
[1728182903232,0.12055157,62003.0,62002.0,0.18857554]
[1728182903427,0.12255157,62003.0,62002.0,0.18757554]
[1728182907429,0.21026115,62003.0,62002.0,0.18757554]
[1728182907734,0.0024,62003.0,62002.0,0.18757554]
[1728182914434,0.0024,62003.0,62002.0,1.27141554]
[1728182914644,0.0024,62003.0,62002.0,0.78757554]
[1728182914645,0.03074854,62003.0,62002.0,0.78757554]
[1728182914843,0.0004,62008.0,62003.0,0.48384]
[1728182915056,0.0004,62008.0,62007.0,0.174505]
[1728182915225,0.0004,62008.0,62007.0,0.174905]
[1728182915537,0.0004,62008.0,62007.0,0.658705]
[1728182916040,0.0004,62008.0,62007.0,0.174905]
[1728182918934,0.0014,62008.0,62007.0,0.176905]
[1728182919140,0.0014,62008.0,62007.0,0.537705]
[1728182919530,0.0014,62008.0,62007.0,0.540705]
[1728182922736,0.0704,62012.0,62011.0,0.064501]
[1728182923038,0.0704,62012.0,62011.0,0.064901]
[1728182923438,0.0704,62012.0,62011.0,0.425701]
[1728182925540,0.0704,62012.0,62011.0,0.426701]
[1728182927445,0.0704,62012.0,62011.0,0.45629453]
[1728182929533,0.0704,62012.0,62011.0,0.65238605]
[1728182929748,0.0704,62012.0,62011.0,0.45629453]
[1728182934558,0.0704,62012.0,62011.0,0.52073391]
[1728182935456,0.0704,62012.0,62011.0,0.52075264]
[1728182936251,0.0704,62012.0,62011.0,0.45629453]
[1728182937756,0.14103097,62012.0,62011.0,0.32720758]
[1728182937945,0.1905227,62012.0,62011.0,0.32720758]
[1728182938551,0.1905227,62012.0,62011.0,0.425301]
[1728182939857,0.1905227,62012.0,62011.0,0.064501]
[1728182940060,0.1905227,62012.0,62011.0,0.45368336]
[1728182940852,0.1905227,62012.0,62011.0,0.48508336]
[1728182941053,0.19052268,62012.0,62011.0,0.48508336]
[1728182941460,0.0076,62019.0,62011.0,1.09296977]
[1728182941661,0.05783065,62023.0,62011.0,0.56926977]
[1728182941662,0.03523376,62012.0,62011.0,0.56926977]
[1728182941861,0.05783065,62025.0,62011.0,1.18317819]
[1728182941862,0.0076,62019.0,62011.0,1.18317819]
[1728182942164,1.2e-07,62012.0,62011.0,1.16926977]
[1728182942363,0.0038,62022.0,62021.0,0.064491]
[1728182942562,0.0038,62022.0,62021.0,0.064891]
[1728182942967,0.0038,62022.0,62021.0,0.174891]
[1728182943855,0.0048,62022.0,62021.0,0.176891]
[1728182944652,0.0038,62025.0,62024.0,0.064487]
[1728182944853,0.0626,62026.0,62025.0,0.064486]
[1728182945161,0.0321,62026.0,62025.0,0.18377643]
[1728182945366,0.00621891,62032.0,62030.0,0.064481]
[1728182945666,0.00241891,62032.0,62030.0,0.23924449]
[1728182946365,0.00241891,62032.0,62031.0,0.06448]
[1728182946570,0.00241891,62032.0,62031.0,0.06488]
[1728182947970,0.00341891,62032.0,62031.0,0.06488]
[1728182950569,0.00441891,62032.0,62031.0,0.12914224]
[1728182951074,0.00441891,62032.0,62031.0,0.06488]
[1728182951370,0.00441891,62032.0,62031.0,0.12914305]
[1728182952669,0.0750255,62032.0,62031.0,0.06488]
[1728182953163,0.12450015,62032.0,62031.0,0.06488]
[1728182954661,0.12450067,62032.0,62031.0,0.06488]
[1728182955078,0.12450067,62032.0,62031.0,0.04611922]
[1728182956572,0.12450303,62032.0,62031.0,0.40691922]
[1728182957474,0.12208412,62032.0,62031.0,0.40691922]
[1728182959073,0.12208412,62032.0,62031.0,0.2904734]
[1728182959478,0.12208412,62032.0,62031.0,0.3549534]
[1728182959667,0.002,62032.0,62031.0,0.3549534]
[1728182962579,0.002,62032.0,62031.0,0.06448]
[1728182967780,0.1220854,62032.0,62030.0,0.1104]
[1728182967971,0.1204854,62031.0,62030.0,0.174881]
[1728182969183,0.1204854,62031.0,62030.0,0.175881]
[1728182971083,0.17829814,62031.0,62030.0,0.175881]
[1728182974388,0.17829753,62031.0,62030.0,0.175881]
[1728182974783,0.0004,62031.0,62030.0,0.24014405]
[1728182975384,0.0004,62031.0,62030.0,0.175881]
[1728182976588,0.0004,62031.0,62030.0,0.536681]
[1728182978688,0.0004,62031.0,62030.0,0.426681]
[1728182978991,0.0004,62031.0,62030.0,0.4911876]
[1728182979687,0.0004,62031.0,62030.0,0.426681]
[1728182979891,0.0004,62031.0,62030.0,0.065881]
[1728182983390,0.03153739,62031.0,62030.0,0.065881]
[1728182989795,0.12048913,62031.0,62030.0,0.065881]
[1728182990597,0.12048913,62031.0,62030.0,0.04820725]
[1728182993989,0.04987785,62031.0,62030.0,0.04820725]
[1728182994194,0.12048878,62031.0,62030.0,0.04820725]
[1728182996189,0.12048878,62031.0,62030.0,0.15820725]
[1728182997295,0.12048878,62031.0,62030.0,0.51900725]
[1728182997893,0.0004,62031.0,62030.0,0.58351385]
[1728183003191,0.0004,62031.0,62030.0,0.22271385]
[1728183003392,0.0004,62031.0,62030.0,0.58351385]
[1728183004303,0.0004,62031.0,62030.0,0.22271385]
[1728183004497,0.0004,62031.0,62030.0,0.58351385]
[1728183004800,0.17829674,62031.0,62030.0,0.34156921]
[1728183004999,0.17829674,62031.0,62030.0,0.45156921]
[1728183006605,0.17829674,62031.0,62030.0,0.51605021]
[1728183006797,0.17829674,62031.0,62030.0,0.174481]
[1728183007000,0.17829674,62031.0,62030.0,0.535281]
[1728183007505,0.1782971,62031.0,62030.0,0.535281]
[1728183008004,0.1782971,62031.0,62030.0,0.174481]
[1728183008307,0.1782971,62031.0,62030.0,0.535281]
[1728183009102,0.1782971,62031.0,62030.0,0.425281]
[1728183011998,0.1782971,62031.0,62030.0,0.064481]
[1728183012199,0.1782971,62031.0,62030.0,0.425281]
[1728183012399,0.17829878,62031.0,62030.0,0.064481]
[1728183012700,0.17829878,62031.0,62030.0,0.425281]
[1728183012999,0.03153662,62031.0,62030.0,0.425281]
[1728183014902,0.03153662,62031.0,62030.0,0.064481]
[1728183015100,0.03153662,62031.0,62030.0,0.425281]
[1728183016805,0.03153672,62031.0,62030.0,0.425281]
[1728183018802,0.03153672,62031.0,62030.0,0.064481]
[1728183019012,0.03153672,62031.0,62030.0,0.425281]
[1728183019408,0.03153672,62031.0,62030.0,0.064481]
[1728183019804,0.0004,62031.0,62030.0,0.425281]
[1728183024906,0.0004,62031.0,62030.0,0.064481]
[1728183025212,0.0004,62031.0,62030.0,0.425281]
[1728183025513,0.0004,62031.0,62030.0,0.47365069]
[1728183025907,0.0004,62031.0,62030.0,0.11285069]
[1728183026210,0.0004,62031.0,62030.0,0.47365069]
[1728183027619,0.0004,62031.0,62030.0,0.425281]
[1728183027815,0.08934969,62031.0,62030.0,0.30194727]
[1728183028020,0.08934969,62031.0,62027.0,0.0113]
[1728183028021,0.17829938,62031.0,62027.0,0.0113]
[1728183028220,0.12008624,62030.0,62028.0,0.3608]
[1728183028421,0.12008624,62029.0,62028.0,0.425283]
[1728183029521,0.12008624,62029.0,62028.0,0.427283]
[1728183029913,0.12008624,62029.0,62028.0,0.066483]
[1728183030219,0.12008624,62029.0,62028.0,0.428283]
[1728183030811,0.17789938,62029.0,62028.0,0.067483]
[1728183031013,0.17789938,62029.0,62028.0,0.428283]
[1728183031917,0.17789938,62029.0,62028.0,0.429283]
[1728183032122,0.17789938,62029.0,62028.0,0.068483]
[1728183032806,0.17789938,62029.0,62028.0,0.429283]
[1728183034317,0.17789938,62029.0,62028.0,0.068483]
[1728183034530,0.17789938,62029.0,62028.0,0.429283]
[1728183034914,0.20940199,62030.0,62029.0,0.064482]
[1728183035218,0.0004,62031.0,62029.0,0.0004]
[1728183035519,0.0004,62031.0,62030.0,0.12939548]
[1728183036107,0.0004,62031.0,62030.0,0.064881]
[1728183037030,0.0004,62031.0,62030.0,0.065881]
[1728183038316,0.0004,62031.0,62030.0,0.175881]
[1728183042828,0.12048462,62031.0,62030.0,0.13231801]
[1728183043126,0.32988661,62031.0,62030.0,0.1114]
[1728183043325,0.38769897,62031.0,62030.0,0.1114]
[1728183043519,0.38769897,62031.0,62030.0,0.175881]
[1728183043927,0.32988661,62031.0,62030.0,0.175881]
[1728183045114,0.38769897,62031.0,62030.0,0.175881]
[1728183045320,0.32988661,62031.0,62030.0,0.175881]
[1728183046729,0.38769897,62031.0,62030.0,0.175881]
[1728183046933,0.32988672,62031.0,62030.0,0.175881]
[1728183047225,0.12048473,62031.0,62030.0,0.175881]
[1728183049826,0.0004,62031.0,62030.0,0.175881]
[1728183057935,0.12048528,62031.0,62030.0,0.175881]
[1728183059237,0.12048528,62031.0,62030.0,0.13315582]